Cogmind - Beta 15 @@@ ROGUE MODE // 2025.07.04 @ 20:04:33 Player: jumpy Result: Self-destructed Performance ------------- Evolutions (4) 2000 Regions Visited (5) 1000 Robots Destroyed (17) 85 Value Destroyed (521) 521 Prototype IDs (6) 120 Alien Tech Used (0) 0 Bonus (500) 500 TOTAL SCORE: 4226 Bonus ------- Entered Garrisons 200 Registered with UFD 300 Cogmind --------- Core Integrity 600/850 Matter 258/300 Energy 85/100 System Corruption 0% Temperature Cool (0) Movement Rolling (100) Location -6/Garrison Parts ------- > --- POWER (1) -------- (None) > --- PROPULSION (4) --- Armored Huge Wheel > --- UTILITY (7) ------ Large Storage Unit Advanced Signal Interpreter Advanced Terrain Scan Processor Improved Hacking Suite A0-MCA's Component Scanner > --- WEAPON (3) ------- Scythe > --- INVENTORY (15) --- Light Treads Power Amplifier Huge Storage Unit Improved Hacking Suite Proton Cannon Phase Cannon Heavy Plasma Cannon Peak State ------------ > --- POWER ------------ Light Nuclear Core > --- PROPULSION ------- Armored Huge Wheel Armored Huge Wheel > --- UTILITY ---------- Large Storage Unit Advanced Signal Interpreter Improved Terrain Scanner Advanced Terrain Scan Processor Seismic Detector Improved Hacking Suite A0-MCA's Component Scanner > --- WEAPON ----------- Gauss Rifle Gauss Rifle Scythe > --- INVENTORY -------- Light Treads Power Amplifier Huge Storage Unit Improved Hacking Suite Proton Cannon Phase Cannon Heavy Plasma Cannon [Rating: 60] Favorites ----------- Power Ion Engine Engine Ion Engine Power Core Light Nuclear Core Propulsion Light Treads Treads Light Treads Wheel Armored Huge Wheel Utility Seismic Detector Device Seismic Detector Storage Large Storage Unit Processor A0-MCA's Component Scanner Hackware Improved Hacking Suite Weapon Assault Rifle Energy Cannon Phase Cannon Ballistic Gun Assault Rifle Slashing Weapon Scythe Build | -11 -10 -10 -9 -6 -6 ------- Run | Yrd Mat Sub Scr Fac Gar Slots Evolved 8 | . . . . 8 . Power . | . . . . . . Propulsion 2 | . . . . 2 . Utility 5 | . . . . 5 . Weapon 1 | . . . . 1 . Parts Attached 31 | 7 2 . 4 7 11 Power 3 | 1 . . . . 2 Engine 2 | 1 . . . . 1 Core 1 | . . . . . 1 Reactor . | . . . . . . Propulsion 6 | 2 . . . 2 2 Treads 4 | 2 . . . 2 . Leg . | . . . . . . Wheel 2 | . . . . . 2 Hover . | . . . . . . Flight . | . . . . . . Utility 12 | 2 2 . 1 5 2 Device 4 | 1 . . . 1 2 Storage 4 | 1 2 . 1 . . Processor 3 | . . . . 3 . Hackware 1 | . . . . 1 . Protection . | . . . . . . Artifact . | . . . . . . Weapon 10 | 2 . . 3 . 5 Energy Gun . | . . . . . . Energy Cannon 4 | . . . 2 . 2 Ballistic Gun 5 | 2 . . 1 . 2 Ballistic Cannon . | . . . . . . Launcher . | . . . . . . Special Weapon . | . . . . . . Impact Weapon . | . . . . . . Slashing Weapon 1 | . . . . . 1 Piercing Weapon . | . . . . . . Special Melee Weapon . | . . . . . . Unidentified Prototypes . | . . . . . . Parts Lost 16 | . . . . . 16 Power 3 | . . . . . 3 Propulsion 5 | . . . . . 5 Utility 4 | . . . . . 4 Weapon 4 | . . . . . 4 Highest Loss Streak 9 | . . . . . 9 To Critical Strikes . | . . . . . . Average Backups 11 | 5 7 8 13 12 11 Power . | . 1 1 1 1 . Propulsion 3 | 1 2 2 3 2 2 Utility 3 | 1 2 3 3 4 4 Weapon 4 | 1 2 2 5 4 3 Tool/Special . | . . . . . . Unused Backups 9 | . . . 3 2 4 Power . | . . . . . . Propulsion 4 | . . . 2 1 1 Utility 2 | . . . . . 2 Weapon 3 | . . . 1 1 1 Tool/Special . | . . . . . . Average Slot Usage (%) 97 | . 100 100 100 92 82 Engine 11 | . 14 14 14 6 4 Treads 26 | . 28 28 28 25 13 Device 13 | . 14 14 14 12 8 Storage 11 | . 14 14 14 6 6 Processor 4 | . . . . 15 20 Hackware 1 | . . . . 3 6 Ballistic Gun 24 | . 28 28 27 19 10 Peak Build Rating 60 | 7 8 8 14 49 60 Average Rating 17 | 5 7 8 10 43 48 On Entrance 14 | . 7 8 8 12 49 Naked Turns . | . . . . . . Heaviest Build 90 | 15 30 30 90 33 43 Greatest Support 82 | 40 40 40 40 82 82 Greatest Overweight (x) 14 | . . . 2 . 14 Average Overweight (x) . | . . . . . . Largest Inventory Capacity 25 | 8 15 15 25 25 15 Average Capacity 14 | 7 9 15 16 15 15 Most Carried 16 | 7 9 8 16 15 15 Average Carried 12 | 5 7 8 14 13 12 Final Capacity 25 | 8 15 15 25 15 15 Final Carried 16 | 7 8 8 16 15 7 Class Distribution -------------------- 78% | Mutant 19% | Skirmisher Dominant Class ---------------- Mutant | -10/Materials Mutant | -10/Subcaves Mutant | -9/Scraptown Skirmisher | -6/Factory Skirmisher | -6/Garrison Resources | -11 -10 -10 -9 -6 -6 ----------- Run | Yrd Mat Sub Scr Fac Gar Matter Collected 767 | 396 22 22 40 61 226 Remotely . | . . . . . . Salvage Created 535 | 220 77 . . 121 117 Parts 44 | 25 6 . . 4 9 Haulers Intercepted 1 | . 1 . . . . Recyclers Shooed . | . . . . . . Parts Field Recycled . | . . . . . . Retrieved Matter . | . . . . . . Parts Self-Destructed . | . . . . . . Prevented . | . . . . . . Kills | -11 -10 -10 -9 -6 -6 ------- Run | Yrd Mat Sub Scr Fac Gar Combat Hostiles Destroyed 6 | . 1 . . 2 3 Guns 5 | . 1 . . 2 2 Cannons 1 | . . . . . 1 Classes Destroyed 8 | 3 2 . . 1 2 Worker 2 | 2 . . . . . Tunneler 7 | 7 . . . . . Hauler 1 | . 1 . . . . Recycler 1 | 1 . . . . . Swarmer 2 | . . . . . 2 Grunt 1 | . 1 . . . . Sentry 2 | . . . . 2 . Hunter 1 | . . . . . 1 Best Kill Streak 4 | 4 1 . . 1 3 Combat Bots Only 3 | . 1 . . 1 3 Max Kills in Single Turn 1 | 1 1 . . 1 1 Gunslinging . | . . . . . . Exploded . | . . . . . . Melee . | . . . . . . Uniques/NPCs Destroyed . | . . . . . . Combat | -11 -10 -10 -9 -6 -6 -------- Run | Yrd Mat Sub Scr Fac Gar Hostile Shots Fired 222 | . 4 1 . 72 145 Missed 69 | . 2 1 . 16 50 Hits 153 | . 2 . . 56 95 Projectile 153 | . 2 . . 56 95 Critical Strikes 2 | . . . . . 2 Part Disruptions 1 | . . . . 1 . Damage Taken 2073 | . 23 . . 551 1499 Core 250 | . . . . 29 221 Absorbed by Shields 13 | . . . . . 13 Core Remaining (%) 100 | 100 . . 100 . . Volleys Fired 58 | 21 4 . . 10 23 Largest 3 | 2 2 . . 3 3 Hottest 175 | 40 40 . . 60 175 Shots Fired 120 | 42 8 . . 30 40 Gun 111 | 42 8 . . 30 31 Cannon 9 | . . . . . 9 Launcher . | . . . . . . Special . | . . . . . . Kinetic 111 | 42 8 . . 30 31 Thermal 9 | . . . . . 9 Explosive . | . . . . . . Electromagnetic . | . . . . . . Robot Hit Streak 17 | 8 6 . . 17 7 Robot Miss Streak 6 | 3 1 . . 1 6 Penetration Max . | . . . . . . Secondary Targets 1 | . . . . . 1 Max Gunslinging Chain 1 | . . . . . 1 Shots Hit Robots 74 | 25 6 . . 27 16 Core Hits 29 | 10 3 . . 8 8 Critical Kills . | . . . . . . Critical Parts Destroyed 1 | 1 . . . . . Critical Strikes 1 | 1 . . . . . Destroy 1 | 1 . . . . . Melee Attacks . | . . . . . . Impact . | . . . . . . Slashing . | . . . . . . Piercing . | . . . . . . Sneak Attacks . | . . . . . . Combat Hostiles . | . . . . . . Follow-up Attacks . | . . . . . . Damage Inflicted 1064 | 310 81 . . 352 321 Guns 940 | 310 81 . . 352 197 Cannons 124 | . . . . . 124 Explosions . | . . . . . . Melee . | . . . . . . Ramming . | . . . . . . Kinetic 940 | 310 81 . . 352 197 Thermal 124 | . . . . . 124 Explosive . | . . . . . . Electromagnetic . | . . . . . . Impact . | . . . . . . Slashing . | . . . . . . Piercing . | . . . . . . Highest Corruption . | . . . . . . Average Corruption . | . . . . . . Corruption Purged . | . . . . . . Corruption Blocked . | . . . . . . Overload Shots . | . . . . . . Overflow Damage . | . . . . . . Projectiles . | . . . . . . Explosions . | . . . . . . Melee . | . . . . . . Knockbacks . | . . . . . . Impact . | . . . . . . Kinetic . | . . . . . . Secondary . | . . . . . . Self-Inflicted Damage . | . . . . . . Shots . | . . . . . . Rammed . | . . . . . . Targets Rammed . | . . . . . . Kicked . | . . . . . . Crushed . | . . . . . . Highest Temperature 126 | . . . . 6 126 Average Temperature 33 | . . . . 6 39 Received Heat Transfer 258 | . 12 . . 114 132 Siege Activations . | . . . . . . Martial Activations . | . . . . . . Shielding Activations . | . . . . . . Robots Disrupted . | . . . . . . Combat Hostiles . | . . . . . . Robots Corrupted . | . . . . . . Combat Hostiles . | . . . . . . Parts Fried . | . . . . . . Impact Corruptions . | . . . . . . Robots Melted . | . . . . . . Combat Hostiles . | . . . . . . Parts Melted 1 | . . . . . 1 Heat Transferred 174 | . . . . . 174 Parts Sabotaged . | . . . . . . Parts Stolen . | . . . . . . Parts Stripped . | . . . . . . Power Chain Reactions . | . . . . . . Alert | -11 -10 -10 -9 -6 -6 ------- Run | Yrd Mat Sub Scr Fac Gar Maximum Alert Level . | . . . . . . Low Security (%) 100 | 100 100 . . 100 100 Level 1 . | . . . . . . Level 2 . | . . . . . . Level 3 . | . . . . . . Level 4 . | . . . . . . Level 5 . | . . . . . . High Security . | . . . . . . Max Security . | . . . . . . Peak Influence 62 | 15 20 . . 30 62 Initial 7 | . . . . . 7 Average 9 | 1 1 . . 3 37 Influence Increases 282 | 50 27 . . 70 135 Destroy 0b10 Robot/C 120 | . 20 . . 40 60 Destroy 0b10 Robot/NC 55 | 50 5 . . . . Destroy Leader 42 | . 2 . . 20 20 Successful Hack 10 | . . . . 10 . Anti-Garrison Action 50 | . . . . . 50 Destroy Structure 5 | . . . . . 5 Influence Decreases 282 | 50 27 . . 60 145 Entered New Map 3 | . . . . . 3 Time Decay 137 | 50 27 . . 60 . Lost Part 142 | . . . . . 142 Squads Dispatched 1 | . . . . 1 . Investigation . | . . . . . . Extermination 1 | . . . . 1 . Reinforcement . | . . . . . . Assault . | . . . . . . Garrison . | . . . . . . Intercept . | . . . . . . Searches Triggered . | . . . . . . Construction Impeded . | . . . . . . Haulers Reinforced . | . . . . . . Active Scanning Responses . | . . . . . . Cargo Convoy Interrupts . | . . . . . . Stealth | -11 -10 -10 -9 -6 -6 --------- Run | Yrd Mat Sub Scr Fac Gar Distress Signals 1 | . 1 . . . . Communications Jammed . | . . . . . . Distress Signals . | . . . . . . Times Spotted 21 | . 2 1 . 2 16 Peak Tracking Total 12 | . 2 2 . 1 12 Tactical Retreats . | . . . . . . Traps | -11 -10 -10 -9 -6 -6 ------- Run | Yrd Mat Sub Scr Fac Gar Traps Triggered 2 | . . . . . 2 Indirectly . | . . . . . . Trap Hack Attempts . | . . . . . . Triggered . | . . . . . . Disarmed . | . . . . . . Reprogrammed . | . . . . . . Reused . | . . . . . . Traps Extracted . | . . . . . . Installed . | . . . . . . Triggered . | . . . . . . Machines | -11 -10 -10 -9 -6 -6 ---------- Run | Yrd Mat Sub Scr Fac Gar Machines Disabled 1 | . . . . . 1 Max in Single Turn 1 | . . . . . 1 Garrison Relay 1 | . . . . . 1 Machines Repaired . | . . . . . . Machines Dismantled . | . . . . . . Machines Sabotaged . | . . . . . . Overloaded Fab Kills . | . . . . . . Hacking | -11 -10 -10 -9 -6 -6 --------- Run | Yrd Mat Sub Scr Fac Gar Machines Accessed 4 | . . . 3 1 . Terminals . | . . . . . . Fabricators . | . . . . . . Repair Stations . | . . . . . . Recycling Units . | . . . . . . Scanalyzers . | . . . . . . Garrison Access 1 | . . . . 1 . Total Hacks 14 | . . . 12 2 . Successful 13 | . . . 12 1 . Failed 1 | . . . . 1 . Catastrophic . | . . . . . . Database Lockouts . | . . . . . . Manual . | . . . . . . Terminals . | . . . . . . Fabricators . | . . . . . . Repair Stations . | . . . . . . Recycling Units . | . . . . . . Scanalyzers . | . . . . . . Garrison Access 2 | . . . . 2 . Terminal Hacks 12 | . . . 12 . . Record 12 | . . . 12 . . Fabricator Hacks . | . . . . . . Repair Station Hacks . | . . . . . . Recycling Unit Hacks . | . . . . . . Scanalyzer . | . . . . . . Garrison Access Hacks 1 | . . . . 1 . Unlock Access 1 | . . . . 1 . Unauthorized Hacks . | . . . . . . Terminals . | . . . . . . Fabricators . | . . . . . . Repair Stations . | . . . . . . Recycling Units . | . . . . . . Scanalyzers . | . . . . . . Garrison Access . | . . . . . . Data Cores Recovered . | . . . . . . Used . | . . . . . . Hacking Detections 1 | . . . . 1 . Full Trace Events . | . . . . . . Feedback Events . | . . . . . . Feedback Blocked . | . . . . . . Robot Schematics Acquired . | . . . . . . Robots Built . | . . . . . . Authchips . | . . . . . . Time . | . . . . . . Total Robot Build Rating . | . . . . . . Part Schematics Acquired . | . . . . . . Parts Built . | . . . . . . Authchips . | . . . . . . Time . | . . . . . . Total Part Build Rating . | . . . . . . Parts Repaired . | . . . . . . Time . | . . . . . . Parts Recycled . | . . . . . . Recycled Matter . | . . . . . . Retrieved Matter . | . . . . . . Retrieved Components . | . . . . . . Parts Scanalyzed . | . . . . . . Part Schematics Acquired . | . . . . . . Parts Damaged . | . . . . . . Bothacking | -11 -10 -10 -9 -6 -6 ------------ Run | Yrd Mat Sub Scr Fac Gar Used RIF Installer . | . . . . . . Robots Hacked . | . . . . . . Non-combat . | . . . . . . Combat . | . . . . . . Robot Hacks Applied . | . . . . . . Relay Couplers Released 3 | . . . . . 3 Machine Destruction 3 | . . . . . 3 Fabnet Peak Effective % . | . . . . . . Robots Rewired . | . . . . . . Allies Hacked . | . . . . . . Hacks Repelled . | . . . . . . Allies | -11 -10 -10 -9 -6 -6 -------- Run | Yrd Mat Sub Scr Fac Gar Total Allies . | . . . . . . Largest Group . | . . . . . . Highest-Rated Group . | . . . . . . Highest-Rated Ally . | . . . . . . Total Orders . | . . . . . . Ally Attacks . | . . . . . . Total Damage . | . . . . . . Kills . | . . . . . . Allies Corrupted . | . . . . . . Allies Melted . | . . . . . . Intel | -11 -10 -10 -9 -6 -6 ------- Run | Yrd Mat Sub Scr Fac Gar Active Infowar (turns) 3037 | 36 225 275 1787 517 197 Terrain 684 | . . . . 515 169 Seismic 3028 | 36 225 275 1787 517 188 Robot Analysis Total . | . . . . . . Derelict Logs Recovered . | . . . . . . Drone Launches . | . . . . . . Drone Recoveries . | . . . . . . Exploration | -11 -10 -10 -9 -6 -6 ------------- Run | Yrd Mat Sub Scr Fac Gar Turns Passed 3409 | 325 225 275 1787 517 280 Spaces Moved 1880 | 156 128 160 1018 290 128 Core 7 | 4 . . . . 3 Treads 1820 | 152 128 160 1018 290 72 Legs . | . . . . . . Wheels 53 | . . . . . 53 Hover . | . . . . . . Flight . | . . . . . . Fastest Speed 50 | 50 160 160 160 156 100 Average Speed 165 | 157 160 160 173 156 148 Slowest Speed 750 | 160 160 160 320 156 750 Overloaded Moves . | . . . . . . Propulsion Burnouts . | . . . . . . Robots Hopped . | . . . . . . Potential Cave-ins . | . . . . . . Cave-ins Triggered . | . . . . . . Exploration Rate (%) 27 | 6 30 16 78 8 24 Regions Visited 5 Branch Regions 2 Pre-discovered Areas 2 | . . . 2 . . Known Exits Taken 1 | . . . . 1 . Unknown Exits Taken 4 | 1 1 1 1 . . Scrap Searched 3 | . . . 3 . . Spaces Dug . | . . . . . . Terrain Destroyed . | . . . . . . Melee . | . . . . . . Projectile . | . . . . . . AOE . | . . . . . . Terrain Rammed . | . . . . . . Walls Destroyed . | . . . . . . Machines Disabled . | . . . . . . Actions | -11 -10 -10 -9 -6 -6 --------- Run | Yrd Mat Sub Scr Fac Gar Total 2056 | 190 141 179 1036 334 176 Wait 39 | . 5 20 . 13 1 Move 1875 | 155 127 159 1017 289 128 Hop . | . . . . . . Pick Up 29 | 7 1 . 10 8 3 Fast Attach 10 | 7 . . . 3 . Attach 14 | . . . 1 5 8 Detach 1 | . . . 1 . . Swap 11 | . 2 . 4 1 4 Drop 11 | . 2 . 3 5 1 Fire 58 | 21 4 . . 10 23 Melee . | . . . . . . Ram . | . . . . . . Kick . | . . . . . . Crush . | . . . . . . Escape Stasis 8 | . . . . . 8 Rewire . | . . . . . . Trap . | . . . . . . Miscellaneous . | . . . . . . Route ------- -11/Scrapyard -10/Materials -10/Subcaves -9/Scraptown (discovered 2 exits: *Fac x2) -6/Factory -6/Garrison History --------- Turn | Location | Event 8 | -11/Scrapyard | Discovered new exit (range 15) 326 | -11/Scrapyard | Entered Materials 327 | -10/Materials | Build established: Mutant 327 | -10/Materials | Met a group of wandering Federalists 546 | -10/Materials | Discovered new exit (range 5) 551 | -10/Materials | Entered Subcaves 552 | -10/Subcaves | Continued accompanying wandering Federalists (6) 579 | -10/Subcaves | Ambushed by Subdwellers from Twisted Machinery 632 | -10/Subcaves | A swath of the cavern ceiling suddenly collapsed 826 | -10/Subcaves | Entered Scraptown 1192 | -9/Scraptown | Discovered new exit (range 7) 1350 | -9/Scraptown | Visited Cyclists 1414 | -9/Scraptown | Visited Scrapoid Research Area 1469 | -9/Scraptown | Visited SPCMW 1501 | -9/Scraptown | Visited Awakened 1510 | -9/Scraptown | Visited IN-MT5's Study 1782 | -9/Scraptown | Visited UFD Registry 1782 | -9/Scraptown | Registered with UFD as "Steelbank" 1955 | -9/Scraptown | Entered Cyclist Reading Room 1961 | -9/Scraptown | Learned location of Zion (-7) 2077 | -9/Scraptown | Visited A0-MCA Data Center 2086 | -9/Scraptown | Given an A- rating by A0-MCA 2092 | -9/Scraptown | Found A0-MCA's Component Scanner 2152 | -9/Scraptown | Visited LU-1G1's Boring Crew 2176 | -9/Scraptown | Visited Derelict Rescue Squad 2200 | -9/Scraptown | Visited Abandonware Association 2211 | -9/Scraptown | Learned abandonware demo "OVRCLOCK.EXE" 2219 | -9/Scraptown | Learned abandonware demo "HACKBUD.EXE" 2318 | -9/Scraptown | Visited Infowarlord's Domain 2331 | -9/Scraptown | Found Exp. Terrain Scanner 2437 | -9/Scraptown | Visited Research Penetration Think Tank 2591 | -9/Scraptown | Discovered new exit (range 5) 2613 | -9/Scraptown | Entered Factory 2613 | -6/Factory | Evolved 8 slots: Propulsion x2, Utility x5, Weapon x1 2910 | -6/Factory | Build established: Skirmisher 3119 | -6/Factory | Identified exit to Garrison 3130 | -6/Factory | Entered Garrison 3158 | -6/Garrison | Triggered checkpoint 3195 | -6/Garrison | Garrison Relay disabled 3329 | -6/Garrison | Lost 9 parts (1p4n2u2w) 3410 | -6/Garrison | Self-destructed Last Messages --------------- 03387_ S-27 Virus unfolds itself. 03388_ Critical hit (Burn: +37). 03389_ Slug penetrates G-50 Soldier. 03390_ Seismic Detector destroyed. 03394_ Lgt. Nuclear Core destroyed. Garrison Door activated. 03397_ Slug penetrates Reinforced Barrier. 03398_ Imp. Terrain Scanner destroyed. 03399_ Gauss Rifle destroyed. 03401_ Penetrated by Slug. 03401_ Slug penetrates Wall. 03402_ Slug penetrates Reinforced Barrier. 03406_ Slug penetrates Wall. 03406_ Penetrated by Slug. 03406_ Ion Engine destroyed. 03408_ Triggered Stasis Trap. 03408_ A bubble of rippling energy engulfs the area. 03408_ Field strength at 66. 03409_ Field strength at 28. 03409_ Arm. Huge Wheel destroyed. Map ----- +----------------------------------------------------+ | ?????????????????????????????????????????????????? | | ?????????????????????????????????????????????????? | | ?????????????????????????????????????????????????? | | ?????????????????????????????????????????????????? | | ?????????????????????????????????????????????????? | | ?????????????????????????????????????????????????? | | ?????????????????????????????????????????????????? | | ?????????????????????????????????????????????????? | | ?????????????????????????????????????????????????? | | ?????????????????????????????????????????????????? | | ?????????????????????????????????????????????????? | | ?????????????????????????????????????????????????? | | ?????????????????????????????????????????????????? | | ?????????????????????????????????????????????????? | | ?????????????????????????????????????????????????? | | ?????????????????????????????????????????????????? | | ?????????????????????????????????????????????????? | | ?????????????????????????????????????????????????? | | ?????????????????????#???????????????????????????? | | ?????????????????????# ??????????????????????????? | | ?????????????????????# ??????????????????????????? | | ?????????????????????# ?????????????????????????? | | ?????????????????????# ???????????????####??????? | | ?????????????????????# ????????????? #??????? | | ?????????????????????# ##########"## ## #?? | | ?????????????????????# @ ss h #?? | | ?????????????????????# sss h #?? | | ?????????????????????# ss #?? | | ?????????????????????############ ## #??? ??? | | ??????????????????????????????### ## ## #?? | | ??????????????????????????????# ? | | ??????????????????????????????# ? | | ??????????????????????????????# ? | | ??????????????????????????????# ? | | ??????????????????????????????### ## ## #?? | | ??????????????????????########### ## #??? ??? | | ??????????????????????# = " ?? | | ??????????????????????# = ?? | | ??????????????????????# [[ ?? | | ??????????????????????# = ############ " ######?? | | ??????????????????????#! #??????????? "%"#??????? | | ??????????????######??# ==##### ###????####??????? | | ??????????????#"# #??# = #?????????? | | ??????????????#"! #??# ##### ###??????????????? | | ??????????????# ! #??#^^^#??????????????????????? | | ??????????????#"! #??#^^ #??????????????????????? | | ??????????????#"# #??# #??????????????????????? | | ??????????????### #??# #??????????????????????? | | ????????????????# #### #??????????????????????? | | ????????????????# + # #??????????????????????? | +----------------------------------------------------+ Best States ------------- Heat Dissipation 37 Energy Generation 14 Energy Capacity 250 Matter Stores 300 Matter Capacity 300 Sight Range 16 Terrain Scan Range 30 Terrain Scan Density 210 Evasion (%) 40 Recoil Reduction 4 Offensive Hacking 12 Item Schematics ----------------- None Robot Schematics ------------------ None Fabricated ------------ Nothing Repaired ---------- Nothing Alien Tech Used ----------------- None Achievements -------------- None Challenges ------------ None Game ------ Seed DisintegrationSmallSpecial Manual? 0 Play Time 00:14:19 Cumulative 130.8 hours Start 2025.07.04 @ 19:52:25 End 2025.07.04 @ 20:04:33 Sessions 1 Manual Loads 0 Difficulty Rogue Special Mode None Game No. 343 Rogue 343 Adventurer 0 Explorer 0 Win Type - Total 3 Types 2/0/1/0/0/0/0/0/0/0 Lore% 65 Gallery% 54 Achievement% 46 Wizard Run 0 Options --------- Layout 0 ASCII 0 Keyboard 0 Movement Numpad Keybinds 0 Fullscreen 2 Font 18/Terminus Map View 76x50 Zoom Use 0% Tactical HUD 1 Map Filters NONE Filters NONE Steam 1 RUN: cba12d82-1a7b-4c06-9c1b-a9000bf02ec6